Cogmind - Beta 15 @@@ ROGUE MODE // 2025.06.17 @ 00:44:46 Player: morimori Result: Destroyed by G-47 Trooper with Particle Gun Performance ------------- Evolutions (0) 0 Regions Visited (2) 400 Robots Destroyed (34) 170 Value Destroyed (639) 639 Prototype IDs (0) 0 Alien Tech Used (0) 0 Bonus (0) 0 TOTAL SCORE: 1209 Bonus ------- None Cogmind --------- Core Integrity 0/250 Matter 271/300 Energy 250/250 System Corruption 0% Temperature Cool (9) Movement Rolling (140) Ox4 Location -10/Mines Parts ------- > --- POWER (1) -------- Ion Engine > --- PROPULSION (2) --- Wheel Wheel > --- UTILITY (2) ------ Huge Storage Unit Core Shielding > --- WEAPON (2) ------- Assault Rifle Assault Rifle > --- INVENTORY (25) --- Ion Engine Light Ion Engine Wheel Wheel Wheel Hover Unit Hover Unit Hover Unit Hover Unit Heat Sink Heat Sink High-capacity Storage Unit Visual Processing Unit Sensor Array Seismic Detector Seismic Detector Light Armor Plating Hacking Suite Small Laser Small Laser Small Laser Small Laser Particle Gun Light Assault Rifle Peak State ------------ > --- POWER ------------ Ion Engine > --- PROPULSION ------- Compact Wheel Compact Wheel > --- UTILITY ---------- Huge Storage Unit Seismic Detector > --- WEAPON ----------- Small Laser Light Assault Rifle > --- INVENTORY -------- Ion Engine Ion Engine Light Ion Engine Wheel Wheel Hover Unit Heat Sink High-capacity Storage Unit Visual Processing Unit Seismic Detector Core Shielding Light Armor Plating Small Laser Small Laser Small Laser Assault Rifle Assault Rifle Assault Rifle Assault Rifle [Rating: 9] Favorites ----------- Power Ion Engine Engine Ion Engine Propulsion Compact Wheel Wheel Compact Wheel Utility Seismic Detector Device Seismic Detector Storage Huge Storage Unit Protection Core Shielding Weapon Assault Rifle Energy Gun Small Laser Ballistic Gun Assault Rifle Build | -11 -10 -10 ------- Run | Yrd Mat Min Slots Evolved . | . . . Power . | . . . Propulsion . | . . . Utility . | . . . Weapon . | . . . Parts Attached 21 | 7 13 1 Power 2 | 1 1 . Engine 2 | 1 1 . Core . | . . . Reactor . | . . . Propulsion 8 | 2 6 . Treads . | . . . Leg . | . . . Wheel 8 | 2 6 . Hover . | . . . Flight . | . . . Utility 5 | 2 3 . Device 1 | 1 . . Storage 3 | 1 2 . Processor . | . . . Hackware . | . . . Protection 1 | . 1 . Artifact . | . . . Weapon 6 | 2 3 1 Energy Gun 1 | 1 . . Energy Cannon . | . . . Ballistic Gun 5 | 1 3 1 Ballistic Cannon . | . . . Launcher . | . . . Special Weapon . | . . . Impact Weapon . | . . . Slashing Weapon . | . . . Piercing Weapon . | . . . Special Melee Weapon . | . . . Unidentified Prototypes . | . . . Parts Lost 6 | . 5 1 Power 1 | . 1 . Propulsion 1 | . 1 . Utility . | . . . Weapon 4 | . 3 1 Highest Loss Streak 1 | . 1 1 To Critical Strikes . | . . . Average Backups 16 | 2 17 24 Power 2 | 1 2 2 Propulsion 3 | . 3 7 Utility 5 | . 5 9 Weapon 5 | . 5 6 Tool/Special . | . . . Unused Backups 21 | 1 . 20 Power 2 | . . 2 Propulsion 6 | 1 . 5 Utility 7 | . . 7 Weapon 6 | . . 6 Tool/Special . | . . . Average Slot Usage (%) 99 | . 99 95 Engine 14 | . 14 14 Wheel 27 | . 27 28 Device 10 | . 10 . Storage 14 | . 14 14 Protection 3 | . 3 14 Energy Gun 5 | . 5 . Ballistic Gun 22 | . 22 23 Peak Build Rating 9 | 7 9 9 Average Rating 8 | 5 8 8 On Entrance 5 | . 7 9 Naked Turns . | . . . Heaviest Build 90 | 13 90 90 Greatest Support 32 | 32 32 20 Greatest Overweight (x) 4 | 2 4 4 Average Overweight (x) 2 | . 2 4 Largest Inventory Capacity 25 | 8 25 25 Average Capacity 22 | 7 23 25 Most Carried 25 | 6 25 25 Average Carried 17 | 2 17 24 Final Capacity 25 | 8 25 25 Final Carried 25 | 5 25 24 Class Distribution -------------------- 100% | Mutant Dominant Class ---------------- Mutant | -10/Materials Mutant | -10/Mines Resources | -11 -10 -10 ----------- Run | Yrd Mat Min Matter Collected 754 | 279 475 . Remotely . | . . . Salvage Created 1024 | 139 885 . Parts 66 | 8 58 . Haulers Intercepted . | . . . Recyclers Shooed . | . . . Parts Field Recycled . | . . . Retrieved Matter . | . . . Parts Self-Destructed . | . . . Prevented . | . . . Kills | -11 -10 -10 ------- Run | Yrd Mat Min Combat Hostiles Destroyed 19 | . 19 . Guns 19 | . 19 . Classes Destroyed 8 | 3 5 . Worker 3 | 1 2 . Builder 1 | . 1 . Tunneler 3 | 2 1 . Recycler 2 | 1 1 . Operator 3 | . 3 . Watcher 3 | . 3 . Swarmer 6 | . 6 . Grunt 13 | . 13 . Best Kill Streak 3 | 2 3 . Combat Bots Only 3 | . 3 . Max Kills in Single Turn 2 | 1 2 . Gunslinging . | . . . Exploded . | . . . Melee . | . . . Uniques/NPCs Destroyed . | . . . Combat | -11 -10 -10 -------- Run | Yrd Mat Min Hostile Shots Fired 112 | . 95 17 Missed 26 | . 21 5 Hits 86 | . 74 12 Projectile 86 | . 74 12 Critical Strikes 2 | . 2 . Damage Taken 959 | . 802 157 Core 255 | . 232 23 Absorbed by Shields . | . . . Redirected to Shielding 8 | . 4 4 Core Remaining (%) 100 | 100 . . Volleys Fired 101 | 9 88 4 Largest 2 | 2 2 2 Hottest 60 | 60 60 40 Shots Fired 202 | 18 176 8 Gun 202 | 18 176 8 Cannon . | . . . Launcher . | . . . Special . | . . . Kinetic 163 | 9 146 8 Thermal 39 | 9 30 . Explosive . | . . . Electromagnetic . | . . . Robot Hit Streak 8 | 6 8 6 Robot Miss Streak 6 | 1 6 1 Penetration Max . | . . . Secondary Targets 1 | . 1 . Max Gunslinging Chain 1 | . 1 . Shots Hit Robots 120 | 14 99 7 Core Hits 57 | 6 49 2 Critical Kills . | . . . Critical Parts Destroyed 1 | . 1 . Critical Strikes 1 | . 1 . Destroy 1 | . 1 . Melee Attacks . | . . . Impact . | . . . Slashing . | . . . Piercing . | . . . Sneak Attacks . | . . . Combat Hostiles . | . . . Follow-up Attacks . | . . . Damage Inflicted 1353 | 133 1134 86 Guns 1353 | 133 1134 86 Cannons . | . . . Explosions . | . . . Melee . | . . . Ramming . | . . . Kinetic 1071 | 56 929 86 Thermal 282 | 77 205 . Explosive . | . . . Electromagnetic . | . . . Impact . | . . . Slashing . | . . . Piercing . | . . . Highest Corruption . | . . . Average Corruption . | . . . Corruption Purged . | . . . Corruption Blocked . | . . . Overload Shots . | . . . Overflow Damage . | . . . Projectiles . | . . . Explosions . | . . . Melee . | . . . Knockbacks . | . . . Impact . | . . . Kinetic . | . . . Secondary . | . . . Self-Inflicted Damage . | . . . Shots . | . . . Rammed . | . . . Targets Rammed . | . . . Kicked . | . . . Crushed . | . . . Highest Temperature 64 | 40 64 4 Average Temperature 22 | 19 24 2 Received Heat Transfer 456 | . 363 93 Siege Activations . | . . . Martial Activations . | . . . Shielding Activations . | . . . Robots Disrupted . | . . . Combat Hostiles . | . . . Robots Corrupted . | . . . Combat Hostiles . | . . . Parts Fried . | . . . Impact Corruptions . | . . . Robots Melted . | . . . Combat Hostiles . | . . . Parts Melted 1 | . 1 . Heat Transferred 650 | 175 475 . Parts Sabotaged . | . . . Parts Stolen . | . . . Parts Stripped . | . . . Power Chain Reactions . | . . . Alert | -11 -10 -10 ------- Run | Yrd Mat Min Maximum Alert Level 1 | . 1 . Low Security (%) 96 | 100 96 100 Level 1 3 | . 3 . Level 2 . | . . . Level 3 . | . . . Level 4 . | . . . Level 5 . | . . . High Security . | . . . Max Security . | . . . Peak Influence 217 | 10 217 65 Initial 58 | . 3 58 Average 106 | 1 115 53 Influence Increases 658 | 20 631 7 Destroy 0b10 Robot/C 380 | . 380 . Destroy 0b10 Robot/NC 75 | 20 55 . Destroy Leader 86 | . 86 . Successful Hack 12 | . 5 7 Lose Combat Pursuer 105 | . 105 . Influence Decreases 613 | 15 485 113 Entered New Map 95 | . 2 93 Time Decay 458 | 15 433 10 Lost Part 60 | . 50 10 Squads Dispatched 6 | . 6 . Investigation 3 | . 3 . Extermination . | . . . Reinforcement 3 | . 3 . Assault . | . . . Garrison . | . . . Intercept . | . . . Searches Triggered . | . . . Construction Impeded . | . . . Haulers Reinforced . | . . . Active Scanning Responses . | . . . Cargo Convoy Interrupts . | . . . Stealth | -11 -10 -10 --------- Run | Yrd Mat Min Distress Signals 1 | . 1 . Communications Jammed . | . . . Distress Signals . | . . . Times Spotted 39 | . 37 2 Peak Tracking Total 4 | . 4 2 Tactical Retreats 5 | . 5 . Traps | -11 -10 -10 ------- Run | Yrd Mat Min Traps Triggered 2 | . 2 . Indirectly . | . . . Trap Hack Attempts . | . . . Triggered . | . . . Disarmed . | . . . Reprogrammed . | . . . Reused . | . . . Traps Extracted . | . . . Installed . | . . . Triggered . | . . . Machines | -11 -10 -10 ---------- Run | Yrd Mat Min Machines Disabled . | . . . Max in Single Turn . | . . . Machines Repaired . | . . . Machines Dismantled . | . . . Machines Sabotaged . | . . . Overloaded Fab Kills . | . . . Hacking | -11 -10 -10 --------- Run | Yrd Mat Min Machines Accessed 7 | . 6 1 Terminals 5 | . 4 1 Fabricators . | . . . Repair Stations . | . . . Recycling Units 2 | . 2 . Scanalyzers . | . . . Garrison Access . | . . . Total Hacks 16 | . 14 2 Successful 5 | . 4 1 Failed 11 | . 10 1 Catastrophic 1 | . 1 . Database Lockouts . | . . . Manual 14 | . 12 2 Terminals 14 | . 12 2 Fabricators . | . . . Repair Stations . | . . . Recycling Units 2 | . 2 . Scanalyzers . | . . . Garrison Access . | . . . Terminal Hacks . | . . . Fabricator Hacks . | . . . Repair Station Hacks . | . . . Recycling Unit Hacks 2 | . 2 . Retrieve Components 2 | . 2 . Scanalyzer . | . . . Garrison Access Hacks . | . . . Unauthorized Hacks 3 | . 2 1 Terminals 3 | . 2 1 Botnet 1 | . 1 . Disrupt 1 | . . 1 Operators 1 | . 1 . Fabricators . | . . . Repair Stations . | . . . Recycling Units . | . . . Scanalyzers . | . . . Garrison Access . | . . . Data Cores Recovered . | . . . Used . | . . . Hacking Detections 5 | . 4 1 Full Trace Events 1 | . 1 . Feedback Events . | . . . Feedback Blocked . | . . . Robot Schematics Acquired . | . . . Robots Built . | . . . Authchips . | . . . Time . | . . . Total Robot Build Rating . | . . . Part Schematics Acquired . | . . . Parts Built . | . . . Authchips . | . . . Time . | . . . Total Part Build Rating . | . . . Parts Repaired . | . . . Time . | . . . Parts Recycled . | . . . Recycled Matter . | . . . Retrieved Matter . | . . . Retrieved Components 10 | . 10 . Parts Scanalyzed . | . . . Part Schematics Acquired . | . . . Parts Damaged . | . . . Bothacking | -11 -10 -10 ------------ Run | Yrd Mat Min Used RIF Installer . | . . . Robots Hacked . | . . . Non-combat . | . . . Combat . | . . . Robot Hacks Applied . | . . . Relay Couplers Released . | . . . Fabnet Peak Effective % . | . . . Robots Rewired . | . . . Allies Hacked . | . . . Hacks Repelled . | . . . Allies | -11 -10 -10 -------- Run | Yrd Mat Min Total Allies . | . . . Largest Group . | . . . Highest-Rated Group . | . . . Highest-Rated Ally . | . . . Total Orders . | . . . Ally Attacks . | . . . Total Damage . | . . . Kills . | . . . Allies Corrupted . | . . . Allies Melted . | . . . Intel | -11 -10 -10 ------- Run | Yrd Mat Min Active Infowar (turns) 1156 | 51 1105 . Seismic 1156 | 51 1105 . Robot Analysis Total . | . . . Derelict Logs Recovered . | . . . Drone Launches . | . . . Drone Recoveries . | . . . Exploration | -11 -10 -10 ------------- Run | Yrd Mat Min Turns Passed 1628 | 115 1486 27 Spaces Moved 925 | 65 850 10 Core 7 | 7 . . Treads . | . . . Legs . | . . . Wheels 918 | 58 850 10 Hover . | . . . Flight . | . . . Fastest Speed 50 | 50 100 140 Average Speed 125 | 99 127 140 Slowest Speed 150 | 150 140 140 Overloaded Moves . | . . . Propulsion Burnouts . | . . . Robots Hopped . | . . . Potential Cave-ins . | . . . Cave-ins Triggered . | . . . Exploration Rate (%) 35 | 4 97 6 Regions Visited 2 Branch Regions 1 Pre-discovered Areas . | . . . Known Exits Taken . | . . . Unknown Exits Taken 2 | 1 1 . Scrap Searched . | . . . Spaces Dug . | . . . Terrain Destroyed . | . . . Melee . | . . . Projectile . | . . . AOE . | . . . Terrain Rammed . | . . . Walls Destroyed . | . . . Machines Disabled . | . . . Actions | -11 -10 -10 --------- Run | Yrd Mat Min Total 1193 | 96 1082 15 Wait 112 | 8 104 . Move 923 | 64 849 10 Hop . | . . . Pick Up 30 | 7 23 . Fast Attach 6 | 6 . . Attach 7 | 1 5 1 Detach . | . . . Swap 8 | . 8 . Drop 6 | 1 5 . Fire 101 | 9 88 4 Melee . | . . . Ram . | . . . Kick . | . . . Crush . | . . . Escape Stasis . | . . . Rewire . | . . . Trap . | . . . Miscellaneous . | . . . Route ------- -11/Scrapyard -10/Materials (discovered 4 exits: [*Mat x3] / *Min) -10/Mines History --------- Turn | Location | Event 23 | -11/Scrapyard | Discovered new exit (range 16) 116 | -11/Scrapyard | Entered Materials 305 | -10/Materials | Build established: Mutant 452 | -10/Materials | Discovered new exit (range 10) 607 | -10/Materials | Discovered new exit (range 8) 761 | -10/Materials | Core integrity fell below 50% 1026 | -10/Materials | Discovered new exit (range 7) 1108 | -10/Materials | Core integrity fell below 20% 1162 | -10/Materials | Discovered new exit (range 8) 1602 | -10/Materials | Entered Mines 1629 | -10/Mines | Destroyed by G-47 Trooper with Particle Gun Last Messages --------------- 01470_ Dropped Com. Wheel. 01471_ Dropped Wheel. 01474_ K-01 Serf collects debris. 01474_ Acquired Hover Unit. 01475_ Acquired 14 matter. 01477_ K-01 Serf collects debris. 01478_ Acquired Hacking Suite. 01481_ K-01 Serf collects debris. 01511_ Acquired 3 matter. 01571_ Acquired 1 matter. LOCATION=UNKNOWN GOAL=ESCAPE 01603_ Seismic Survey Station disabled. 01605_ Connecting with Terminal... 01605_ Current location identified: Mines >>Trojan(Disrupt) Trojan loaded successfully. Testing... Disruption routine running. 01607_ Assault Rifle destroyed. Map ----- +----------------------------------------------------+ | ??????????????????????????????????????? | | ??????????????????????????????????????? | | ??????????????????????????????????????? | | ??????????????????????????????????????? | | ??????????????????????????????????????? | | ??????????????????????????????????????? | | ??????????????????????????????????????? | | ??????????????????????????????????????? | | ??????????????????????????????????????? | | ??????????????????????????????????????? | | ??????????????????????????????????????? | | ??????????????????????????????????????? | | ??????????????????????????????????????? | | ??????????????????????????????????????? | | ??????????????????????????????????????? | | ??????????????????????????????????????? | | ??????????????????????????????????????? | | ??????????????????????????????????????? | | ??????????????????????????????????????? | | ??????????????????????????????????????? | | ??????????????????????????????????????? | | ??????????????????????????????????????? | | ??????????????????????????????????????? | | ??????????????????????????????????????? | | ??????????? t ### ############???? | | ??????????????????# @g #???? | | ??????????????????# """ """ g #???? | | ??????????????????# """ """ #???? | | ??????????????????# """ " #???? | | ??????????????????# #???? | | ??????????????????# T#??? | | ??????????????????# ##??? | | ??????????????????# #???? | | ??????????????????#################???? | | ??????????????????????????????????????? | | ??????????????????????????????????????? | | ??????????????????????????????????????? | | ??????????????????????????????????????? | | | | | | | | | | | | | | | | | | | | | | | | | +----------------------------------------------------+ Best States ------------- Heat Dissipation 25 Energy Generation 10 Energy Capacity 250 Matter Stores 300 Matter Capacity 300 Sight Range 16 Terrain Scan Density 10 Core Shielding 20 Evasion (%) 40 Item Schematics ----------------- None Robot Schematics ------------------ None Fabricated ------------ Nothing Repaired ---------- Nothing Alien Tech Used ----------------- None Achievements -------------- None Challenges ------------ None Game ------ Seed MultireflexStormEdition Manual? 0 Play Time 00:09:08 Cumulative 423.2 hours Start 2025.06.16 @ 23:05:48 End 2025.06.17 @ 00:44:46 Sessions 1 Manual Loads 0 Difficulty Rogue Special Mode None Game No. 211 Rogue 211 Adventurer 0 Explorer 0 Win Type - Total 5 Types 5/0/0/0/0/0/0/0/0/0 Lore% 63 Gallery% 67 Achievement% 63 Wizard Run 0 Options --------- Layout 0 ASCII 0 Keyboard 1 Movement Vi Keybinds 0 Fullscreen 2 Font 18/SmallcapsGlow Map View 76x50 Zoom Use 0% Tactical HUD 1 Map Filters NONE Filters NONE Steam 1 RUN: 238b661b-f1b6-445b-a056-9238eaa64414